fUSD/lending_fUSD_20250616
["ID","MTS","AMOUNT","RATE_DAILY","PERIOD"]
[366166877,1750097440748,-490.0,0.00015722,2]
[366166878,1750097440758,-490.0,0.00015722,2]
[366166879,1750097440768,-493.25718991,0.00015722,2]
[366166880,1750097440777,-490.0,0.00015722,2]
[366166881,1750097440787,-490.0,0.00015722,2]
[366166882,1750097440799,-490.0,0.00015722,2]
[366166883,1750097440810,-490.0,0.00015722,2]
[366166885,1750097440820,-490.0,0.00015722,2]
[366166887,1750097440830,-490.0,0.00015722,2]
[366166889,1750097440840,-490.0,0.00015722,2]
[366166891,1750097440850,-490.0,0.00015722,2]
[366166893,1750097440859,-490.0,0.00015722,2]
[366166895,1750097440868,-490.0,0.00015722,2]
[366166897,1750097440877,-298.92684136,0.00015722,2]
[366166899,1750097440887,-490.0,0.00015722,2]
[366166901,1750097440897,-490.0,0.00015722,2]
[366166903,1750097440907,-490.0,0.00015722,2]
[366166905,1750097440916,-490.0,0.00015722,2]
[366166907,1750097440926,-490.0,0.00015722,2]
[366166909,1750097440935,-490.0,0.00015722,2]
[366166911,1750097440944,-490.0,0.00015722,2]
[366166914,1750097440954,-490.0,0.00015722,2]
[366166916,1750097440977,-1153.5,0.00015722,2]
[366166918,1750097440987,-490.0,0.00015722,2]
[366166920,1750097440996,-500.0,0.00015722,2]
[366166922,1750097441006,-460.0,0.00015722,2]
[366166924,1750097441016,-490.0,0.00015722,2]
[366166926,1750097441025,-494.54946756,0.00015722,2]
[366166928,1750097441035,-648.75,0.00015722,2]
[366166930,1750097441044,-490.0,0.00015722,2]
[366166932,1750097441055,-490.0,0.00015722,2]
[366166934,1750097441064,-384.2551441,0.00015722,2]
[366166973,1750097441434,-445.16130508,0.00015722,2]
[366166975,1750097441447,-992.9,0.00015722,2]
[366166977,1750097441456,-758.65,0.00015722,2]
[366166979,1750097441466,-1000.0,0.00015722,2]
[366166981,1750097441476,-490.54524695,0.00015722,2]
[366166983,1750097441486,-405.80420264,0.00015722,2]
[366166985,1750097441496,-490.0,0.00015722,2]
[366166987,1750097441506,-490.0,0.00015722,2]
[366166989,1750097441516,-490.0,0.00015722,2]
[366166991,1750097441527,-490.0,0.00015722,2]
[366166993,1750097441538,-490.0,0.00015722,2]
[366166995,1750097441548,-490.0,0.00015722,2]
[366166997,1750097441558,-490.0,0.00015722,2]
[366166999,1750097441568,-490.0,0.00015722,2]
[366167002,1750097441579,-493.33319638,0.00015722,2]
[366167003,1750097441588,-490.0,0.00015722,2]
[366167006,1750097441598,-490.0,0.00015722,2]
[366167008,1750097441611,-490.0,0.00015722,2]
[366167010,1750097441622,-498.28930664,0.00015722,2]
[366167012,1750097441632,-490.0,0.00015722,2]
[366167014,1750097441642,-490.0,0.00015722,2]
[366167016,1750097441652,-490.0,0.00015722,2]
[366167018,1750097441661,-500.0,0.00015722,2]
[366167020,1750097441671,-490.0,0.00015722,2]
[366167022,1750097441680,-490.0,0.00015722,2]
[366167024,1750097441690,-490.0,0.00015722,2]
[366167026,1750097441700,-490.0,0.00015722,2]
[366167027,1750097441710,-842.2,0.00015722,2]
[366167029,1750097441720,-490.0,0.00015722,2]
[366167031,1750097441730,-490.0,0.00015722,2]
[366167033,1750097441740,-490.0,0.00015722,2]
[366167036,1750097441756,-1252.4,0.00015722,2]
[366167038,1750097441766,-490.0,0.00015722,2]
[366167040,1750097441777,-490.0,0.00015722,2]
[366167042,1750097441787,-268.37717571,0.00015722,2]
[366167044,1750097441798,-730.56,0.00015722,2]
[366167046,1750097441808,-516.24,0.00015722,2]
[366167048,1750097441818,-490.0,0.00015722,2]
[366167050,1750097441828,-207.49960838,0.00015722,2]
[366167052,1750097441838,-490.0,0.00015722,2]
[366167054,1750097441849,-490.0,0.00015722,2]
[366167056,1750097441860,-989.93,0.00015722,2]
[366167058,1750097441870,-490.0,0.00015722,2]
[366167061,1750097441880,-490.0,0.00015722,2]
[366167063,1750097441891,-490.0,0.00015722,2]
[366167065,1750097441901,-490.0,0.00015722,2]
[366167067,1750097441911,-490.0,0.00015722,2]
[366167069,1750097441921,-490.0,0.00015722,2]
[366167071,1750097441932,-490.0,0.00015722,2]
[366167073,1750097441942,-490.0,0.00015722,2]
[366167075,1750097441952,-490.0,0.00015722,2]
[366167077,1750097441963,-672.45,0.00015722,2]
[366167079,1750097441973,-490.0,0.00015722,2]
[366167081,1750097441984,-1119.59,0.00015722,2]
[366167083,1750097441995,-490.0,0.00015722,2]
[366167085,1750097442005,-490.0,0.00015722,2]
[366167087,1750097442016,-461.87066179,0.00015722,2]
[366167089,1750097442026,-518.00568432,0.00015722,2]
[366167091,1750097442036,-490.0,0.00015722,2]
[366167093,1750097442046,-492.6976837,0.00015722,2]
[366167095,1750097442058,-718.73,0.00015722,2]
[366167097,1750097442068,-490.0,0.00015722,2]
[366167099,1750097442078,-490.0,0.00015722,2]
[366167101,1750097442091,-490.0,0.00015722,2]
[366167103,1750097442102,-490.0,0.00015722,2]
[366167105,1750097442112,-302.29780629,0.00015722,2]
[366167107,1750097442122,-492.71192577,0.00015722,2]
[366167109,1750097442132,-952.43,0.00015722,2]
[366167111,1750097442142,-490.0,0.00015722,2]
[366167113,1750097442152,-336.66069405,0.00015722,2]
[366167115,1750097442163,-490.0,0.00015722,2]
[366167117,1750097442173,-151.977365,0.00015722,2]
[366167119,1750097442188,-182.44902952,0.00015722,2]
[366167121,1750097442198,-490.0,0.00015722,2]
[366167124,1750097442208,-490.0,0.00015722,2]
[366167126,1750097442218,-482.11832571,0.00015722,2]
[366167128,1750097442228,-490.0,0.00015722,2]
[366167130,1750097442242,-490.0,0.00015722,2]
[366167132,1750097442252,-490.0,0.00015722,2]
[366167134,1750097442262,-1345.75,0.00015722,2]
[366167136,1750097442272,-490.0,0.00015722,2]
[366167138,1750097442282,-490.0,0.00015722,2]
[366167140,1750097442293,-490.0,0.00015722,2]
[366167142,1750097442303,-490.0,0.00015722,2]
[366167144,1750097442313,-490.0,0.00015722,2]
[366167146,1750097442323,-490.0,0.00015722,2]
[366167148,1750097442333,-490.0,0.00015722,2]
[366167150,1750097442343,-490.0,0.00015722,2]
[366167152,1750097442352,-567.46,0.00015722,2]
[366167154,1750097442363,-490.0,0.00015722,2]
[366167156,1750097442372,-490.0,0.00015722,2]
[366167158,1750097442382,-465.61063178,0.00015722,2]
[366167160,1750097442392,-551.79,0.00015722,2]
[366167162,1750097442402,-490.0,0.00015722,2]
[366167164,1750097442412,-490.0,0.00015722,2]
[366167167,1750097442422,-490.0,0.00015722,2]
[366167169,1750097442432,-490.0,0.00015722,2]
[366167171,1750097442442,-490.0,0.00015722,2]
[366167173,1750097442452,-436.78339264,0.00015722,2]
[366167175,1750097442461,-1135.62,0.00015722,2]
[366167177,1750097442472,-490.0,0.00015722,2]
[366167179,1750097442481,-490.0,0.00015722,2]
[366167181,1750097442492,-826.68,0.00015722,2]
[366167183,1750097442502,-895.74,0.00015722,2]
[366167185,1750097442512,-490.0,0.00015722,2]
[366167187,1750097442522,-4910.71,0.00015722,2]
[366167189,1750097442535,-490.0,0.00015722,2]
[366167191,1750097442545,-440.0,0.00015722,2]
[366167193,1750097442555,-490.0,0.00015722,2]
[366167195,1750097442564,-491.30125803,0.00015722,2]
[366167197,1750097442575,-2461.85,0.00015722,2]
[366167200,1750097442585,-490.0,0.00015722,2]
[366167202,1750097442596,-490.0,0.00015722,2]
[366167204,1750097442607,-490.0,0.00015722,2]
[366167206,1750097442617,-490.0,0.00015722,2]
[366167209,1750097442635,-490.0,0.00015722,2]
[366167211,1750097442650,-1093.74,0.00015722,2]
[366167213,1750097442660,-490.0,0.00015722,2]
[366167215,1750097442670,-490.0,0.00015722,2]
[366167217,1750097442680,-717.88,0.00015722,2]
[366167219,1750097442690,-490.0,0.00015722,2]
[366167221,1750097442701,-796.78,0.00015722,2]
[366167223,1750097442711,-625.08,0.00015722,2]
[366167226,1750097442722,-1647.18,0.00015722,2]
[366167228,1750097442732,-460.0,0.00015722,2]
[366167230,1750097442742,-543.83,0.00015722,2]
[366167232,1750097442752,-601.64715261,0.00015722,2]
[366167234,1750097442762,-490.0,0.00015722,2]
[366167236,1750097442773,-1130.31,0.00015722,2]
[366167238,1750097442784,-490.0,0.00015722,2]
[366167240,1750097442795,-1081.71,0.00015722,2]
[366167242,1750097442805,-490.0,0.00015722,2]
[366167244,1750097442815,-1991.64,0.00015722,2]
[366167246,1750097442826,-490.0,0.00015722,2]
[366167248,1750097442836,-490.0,0.00015722,2]
[366167250,1750097442845,-490.0,0.00015722,2]
[366167252,1750097442855,-829.21,0.00015722,2]
[366167254,1750097442865,-490.0,0.00015722,2]
[366167256,1750097442876,-490.0,0.00015722,2]
[366167258,1750097442886,-862.87,0.00015722,2]
[366167261,1750097442896,-1235.02,0.00015722,2]
[366167263,1750097442906,-690.88,0.00015722,2]
[366167265,1750097442916,-490.0,0.00015722,2]
[366167267,1750097442926,-555.11311358,0.00015722,2]
[366167269,1750097442936,-490.0,0.00015722,2]
[366167271,1750097442946,-1017.88,0.00015722,2]
[366167273,1750097442957,-490.0,0.00015722,2]
[366167275,1750097442967,-490.0,0.00015722,2]
[366167277,1750097442977,-490.0,0.00015722,2]
[366167280,1750097442988,-1749.64,0.00015722,2]
[366167283,1750097442998,-490.0,0.00015722,2]
[366167285,1750097443009,-490.0,0.00015722,2]
[366167287,1750097443019,-490.0,0.00015722,2]
[366167289,1750097443028,-490.0,0.00015722,2]
[366167291,1750097443038,-711.65,0.00015722,2]
[366167293,1750097443048,-2184.74,0.00015722,2]
[366167295,1750097443057,-590.01916126,0.00015722,2]
[366167297,1750097443072,-490.0,0.00015722,2]
[366167299,1750097443083,-490.0,0.00015722,2]
[366167303,1750097443093,-1526.44,0.00015722,2]
[366167306,1750097443104,-490.0,0.00015722,2]
[366167309,1750097443114,-467.75588766,0.00015722,2]
[366167312,1750097443125,-490.0,0.00015722,2]
[366167315,1750097443136,-513.49,0.00015722,2]
[366167317,1750097443146,-490.0,0.00015722,2]
[366167319,1750097443156,-463.6080084,0.00015722,2]
[366167321,1750097443167,-490.0,0.00015722,2]
[366167323,1750097443178,-490.0,0.00015722,2]
[366167325,1750097443188,-490.0,0.00015722,2]
[366167327,1750097443198,-1234.25,0.00015722,2]
[366167331,1750097443209,-2114.77,0.00015722,2]
[366167334,1750097443219,-490.0,0.00015722,2]
[366167336,1750097443229,-705.05,0.00015722,2]
[366167338,1750097443239,-490.0,0.00015722,2]
[366167340,1750097443250,-3019.32,0.00015722,2]
[366167342,1750097443260,-490.0,0.00015722,2]
[366167344,1750097443270,-2901.48,0.00015722,2]
[366167346,1750097443280,-490.0,0.00015722,2]
[366167348,1750097443290,-920.09,0.00015722,2]
[366167350,1750097443300,-3394.88,0.00015722,2]
[366167352,1750097443311,-464.12914243,0.00015722,2]
[366167354,1750097443321,-1259.21,0.00015722,2]
[366167356,1750097443331,-490.0,0.00015722,2]
[366167358,1750097443342,-747.22,0.00015722,2]
[366167360,1750097443352,-917.9,0.00015722,2]
[366167362,1750097443362,-525.08,0.00015722,2]
[366167364,1750097443372,-490.0,0.00015722,2]
[366167366,1750097443382,-490.0,0.00015722,2]
[366167368,1750097443392,-490.0,0.00015722,2]
[366167371,1750097443402,-528.86,0.00015722,2]
[366167373,1750097443412,-881.3,0.00015722,2]
[366167375,1750097443422,-959.79,0.00015722,2]
[366167377,1750097443432,-3957.31,0.00015722,2]
[366167379,1750097443442,-500.0,0.00015722,2]
[366167381,1750097443452,-578.41862244,0.00015722,2]
[366167383,1750097443462,-514.84738407,0.00015722,2]
[366167385,1750097443472,-2591.73,0.00015722,2]
[366167387,1750097443482,-490.0,0.00015722,2]
[366167389,1750097443493,-490.0,0.00015722,2]
[366167391,1750097443504,-490.0,0.00015722,2]
[366167393,1750097443514,-490.0,0.00015722,2]
[366167395,1750097443525,-490.0,0.00015722,2]
[366167398,1750097443539,-1178.34,0.00015722,2]
[366167400,1750097443551,-1570.26,0.00015722,2]
[366167402,1750097443560,-490.0,0.00015722,2]
[366167404,1750097443571,-1249.99,0.00015722,2]
[366167406,1750097443583,-490.0,0.00015722,2]
[366167408,1750097443592,-492.27277122,0.00015722,2]
[366167410,1750097443602,-1442.17,0.00015722,2]
[366167412,1750097443614,-160.95999568,0.00015722,2]
[366167414,1750097443625,-490.0,0.00015722,2]
[366167416,1750097443636,-495.33238363,0.00015722,2]
[366167418,1750097443646,-816.12,0.00015722,2]
[366167420,1750097443656,-559.14,0.00015722,2]
[366167422,1750097443666,-490.0,0.00015722,2]
[366167424,1750097443676,-705.02,0.00015722,2]
[366167426,1750097443686,-1583.7,0.00015722,2]
[366167428,1750097443697,-490.0,0.00015722,2]
[366167430,1750097443707,-490.0,0.00015722,2]
[366167431,1750097443718,-490.0,0.00015722,2]
[366167432,1750097443729,-461.57177131,0.00015722,2]
[366167433,1750097443740,-660.21,0.00015722,2]
[366167434,1750097443750,-500.0,0.00015722,2]
[366167435,1750097443761,-500.0,0.00015722,2]
[366167436,1750097443771,-933.55,0.00015722,2]
[366167437,1750097443782,-490.0,0.00015722,2]
[366167438,1750097443792,-490.0,0.00015722,2]
[366167440,1750097443804,-572.2,0.00015722,2]
[366167442,1750097443815,-1064.83,0.00015722,2]
[366167445,1750097443824,-490.0,0.00015722,2]
[366167447,1750097443835,-490.0,0.00015722,2]
[366167449,1750097443846,-1877.29,0.00015722,2]
[366167451,1750097443856,-490.0,0.00015722,2]
[366167453,1750097443866,-490.0,0.00015722,2]
[366167455,1750097443876,-490.0,0.00015722,2]
[366167457,1750097443886,-490.0,0.00015722,2]
[366167459,1750097443896,-490.0,0.00015722,2]
[366167461,1750097443907,-490.0,0.00015722,2]
[366167463,1750097443917,-490.0,0.00015722,2]
[366167465,1750097443927,-619.02942442,0.00015722,2]
[366167467,1750097443937,-5808.97,0.00015722,2]
[366167469,1750097443947,-490.0,0.00015722,2]
[366167471,1750097443958,-380.0,0.00015722,2]
[366167473,1750097443968,-2003.01,0.00015722,2]
[366167475,1750097443978,-490.0,0.00015722,2]
[366167477,1750097443988,-490.0,0.00015722,2]
[366167479,1750097443998,-490.0,0.00015722,2]
[366167481,1750097444008,-490.0,0.00015722,2]
[366167483,1750097444019,-1016.09,0.00015722,2]
[366167485,1750097444029,-490.0,0.00015722,2]
[366167487,1750097444038,-490.0,0.00015722,2]
[366167489,1750097444049,-490.0,0.00015722,2]
[366167492,1750097444059,-1379.16,0.00015722,2]
[366167494,1750097444069,-490.0,0.00015722,2]
[366167496,1750097444080,-5973.49,0.00015722,2]
[366167498,1750097444090,-543.98,0.00015722,2]
[366167500,1750097444100,-556.11,0.00015722,2]
[366167502,1750097444110,-490.0,0.00015722,2]
[366167504,1750097444120,-583.93,0.00015722,2]
[366167506,1750097444130,-490.0,0.00015722,2]
[366167507,1750097444140,-590.44473506,0.00015722,2]
[366167509,1750097444150,-490.0,0.00015722,2]
[366167510,1750097444160,-490.0,0.00015722,2]
[366167512,1750097444170,-2191.82,0.00015722,2]
[366167513,1750097444180,-2541.52,0.00015722,2]
[366167514,1750097444191,-490.0,0.00015722,2]
[366167515,1750097444201,-267.38879712,0.00015722,2]
[366167516,1750097444211,-482.5529354,0.00015722,2]
[366167517,1750097444221,-490.0,0.00015722,2]
[366167518,1750097444231,-1589.64,0.00015722,2]
[366167519,1750097444242,-490.0,0.00015722,2]
[366167520,1750097444252,-490.0,0.00015722,2]
[366167521,1750097444264,-1169.98,0.00015722,2]
[366167522,1750097444274,-2216.25,0.00015722,2]
[366167523,1750097444284,-4248.73,0.00015722,2]
[366167524,1750097444294,-500.0,0.00015722,2]
[366167525,1750097444304,-500.0,0.00015722,2]
[366167526,1750097444314,-490.0,0.00015722,2]
[366167527,1750097444324,-500.0,0.00015722,2]
[366167528,1750097444334,-1098.11,0.00015722,2]
[366167529,1750097444344,-651.19,0.00015722,2]
[366167530,1750097444354,-490.0,0.00015722,2]
[366167531,1750097444365,-707.97,0.00015722,2]
[366167532,1750097444375,-490.0,0.00015722,2]
[366167533,1750097444385,-490.0,0.00015722,2]
[366167534,1750097444395,-490.0,0.00015722,2]
[366167535,1750097444405,-490.0,0.00015722,2]
[366167536,1750097444414,-490.0,0.00015722,2]
[366167537,1750097444424,-490.0,0.00015722,2]
[366167538,1750097444434,-748.31,0.00015722,2]
[366167539,1750097444444,-695.28,0.00015722,2]
[366167540,1750097444453,-1609.92,0.00015722,2]
[366167541,1750097444463,-490.0,0.00015722,2]
[366167542,1750097444472,-986.22,0.00015722,2]
[366167543,1750097444482,-775.78,0.00015722,2]
[366167544,1750097444493,-775.78,0.00015722,2]
[366167545,1750097444502,-490.0,0.00015722,2]
[366167546,1750097444513,-490.0,0.00015722,2]
[366167547,1750097444523,-490.0,0.00015722,2]
[366167548,1750097444538,-490.0,0.00015722,2]
[366167549,1750097444547,-490.0,0.00015722,2]
[366167550,1750097444557,-490.0,0.00015722,2]
[366167551,1750097444567,-490.0,0.00015722,2]
[366167552,1750097444577,-908.9,0.00015722,2]
[366167553,1750097444588,-593.17,0.00015722,2]
[366167554,1750097444597,-1730.21,0.00015722,2]
[366167555,1750097444609,-313.19813839,0.00015722,2]
[366167556,1750097444619,-2098.49,0.00015722,2]
[366167557,1750097444629,-490.0,0.00015722,2]
[366167558,1750097444639,-490.0,0.00015722,2]
[366167559,1750097444649,-1940.76,0.00015722,2]
[366167560,1750097444659,-490.0,0.00015722,2]
[366167561,1750097444668,-490.0,0.00015722,2]
[366167562,1750097444678,-538.8,0.00015722,2]
[366167563,1750097444687,-490.0,0.00015722,2]
[366167564,1750097444697,-597.7,0.00015722,2]
[366167565,1750097444707,-490.0,0.00015722,2]
[366167566,1750097444723,-490.0,0.00015722,2]
[366167567,1750097444735,-490.0,0.00015722,2]
[366167568,1750097444746,-1456.14,0.00015722,2]
[366167569,1750097444757,-490.0,0.00015722,2]
[366167570,1750097444767,-490.0,0.00015722,2]
[366167571,1750097444778,-490.0,0.00015722,2]
[366167572,1750097444788,-571.68,0.00015722,2]
[366167573,1750097444799,-706.67,0.00015722,2]
[366167574,1750097444809,-490.0,0.00015722,2]
[366167575,1750097444819,-2767.0,0.00015722,2]
[366167576,1750097444831,-2318.25,0.00015722,2]
[366167577,1750097444842,-550.15,0.00015722,2]
[366167578,1750097444852,-569.59,0.00015722,2]
[366167579,1750097444863,-1192.81,0.00015722,2]
[366167580,1750097444874,-490.0,0.00015722,2]
[366167581,1750097444884,-561.67,0.00015722,2]
[366167582,1750097444895,-4911.12,0.00015722,2]
[366167583,1750097444905,-490.0,0.00015722,2]
[366167584,1750097444915,-13414.35,0.00015722,2]
[366167585,1750097444926,-490.0,0.00015722,2]
[366167586,1750097444936,-490.0,0.00015722,2]
[366167587,1750097444946,-490.0,0.00015722,2]
[366167588,1750097444956,-490.0,0.00015722,2]
[366167589,1750097444966,-490.0,0.00015722,2]
[366167590,1750097444976,-466.67942517,0.00015722,2]
[366167591,1750097444987,-490.0,0.00015722,2]
[366167592,1750097444997,-3575.07,0.00015722,2]
[366167593,1750097445008,-5130.5,0.00015722,2]
[366167594,1750097445018,-490.0,0.00015722,2]
[366167595,1750097445028,-490.0,0.00015722,2]
[366167596,1750097445038,-490.0,0.00015722,2]
[366167597,1750097445048,-690.53,0.00015722,2]
[366167598,1750097445058,-490.0,0.00015722,2]
[366167599,1750097445068,-490.0,0.00015722,2]
[366167600,1750097445078,-490.0,0.00015722,2]
[366167601,1750097445089,-1923.82,0.00015722,2]
[366167602,1750097445100,-490.0,0.00015722,2]
[366167603,1750097445110,-490.0,0.00015722,2]
[366167604,1750097445133,-490.0,0.00015723,2]
[366167605,1750097445150,-490.0,0.00015723,2]
[366167606,1750097445169,-490.0,0.00015723,2]
[366167607,1750097445184,-490.0,0.00015723,2]
[366167608,1750097445198,-213.50301812,0.00015723,2]
[366167609,1750097445210,-490.0,0.00015723,2]
[366167610,1750097445223,-490.0,0.00015723,2]
[366167611,1750097445238,-490.0,0.00015723,2]
[366167612,1750097445252,-490.0,0.00015723,2]
[366167613,1750097445266,-491.31402579,0.00015723,2]
[366167614,1750097445281,-490.0,0.00015723,2]
[366167615,1750097445296,-490.0,0.00015723,2]
[366167616,1750097445312,-490.0,0.00015723,2]
[366167617,1750097445325,-490.0,0.00015723,2]
[366167618,1750097445340,-518.57731214,0.00015723,2]
[366167619,1750097445353,-490.0,0.00015723,2]
[366167620,1750097445365,-490.0,0.00015723,2]
[366167621,1750097445377,-543.80454121,0.00015723,2]
[366167622,1750097445392,-490.0,0.00015723,2]
[366167623,1750097445405,-490.0,0.00015723,2]
[366167624,1750097445419,-490.0,0.00015723,2]
[366167625,1750097445433,-490.0,0.00015723,2]
[366167626,1750097445447,-490.0,0.00015723,2]
[366167627,1750097445461,-490.0,0.00015723,2]
[366167628,1750097445474,-985.41,0.00015723,2]
[366167629,1750097445488,-490.0,0.00015723,2]
[366167630,1750097445500,-490.0,0.00015723,2]
[366167631,1750097445515,-490.0,0.00015723,2]
[366167632,1750097445532,-490.0,0.00015723,2]
[366167633,1750097445547,-490.0,0.00015723,2]
[366167634,1750097445560,-490.0,0.00015723,2]
[366167635,1750097445575,-490.0,0.00015723,2]
[366167636,1750097445588,-490.0,0.00015723,2]
[366167637,1750097445602,-490.0,0.00015723,2]
[366167638,1750097445616,-490.0,0.00015723,2]
[366167639,1750097445629,-490.0,0.00015723,2]
[366167640,1750097445647,-490.0,0.00015723,2]
[366167641,1750097445661,-491.40294096,0.00015723,2]
[366167642,1750097445675,-490.0,0.00015723,2]
[366167643,1750097445689,-490.0,0.00015723,2]
[366167644,1750097445700,-490.0,0.00015723,2]
[366167645,1750097445712,-490.0,0.00015723,2]
[366167646,1750097445724,-490.0,0.00015723,2]
[366167647,1750097445736,-490.0,0.00015723,2]
[366167648,1750097445751,-490.0,0.00015723,2]
[366167649,1750097445766,-491.24294436,0.00015723,2]
[366167650,1750097445778,-490.0,0.00015723,2]
[366167651,1750097445789,-490.0,0.00015723,2]
[366167652,1750097445800,-490.0,0.00015723,2]
[366167653,1750097445812,-490.0,0.00015723,2]
[366167654,1750097445826,-490.0,0.00015723,2]
[366167655,1750097445840,-490.0,0.00015723,2]
[366167656,1750097445857,-493.87048298,0.00015723,2]
[366167657,1750097445872,-490.0,0.00015723,2]
[366167658,1750097445885,-490.0,0.00015723,2]
[366167659,1750097445896,-490.0,0.00015723,2]
[366167660,1750097445907,-490.0,0.00015723,2]
[366167661,1750097445920,-490.0,0.00015723,2]
[366167662,1750097445932,-490.0,0.00015723,2]
[366167663,1750097445945,-490.0,0.00015723,2]
[366167664,1750097445957,-490.0,0.00015723,2]
[366167665,1750097445969,-492.24241165,0.00015723,2]
[366167666,1750097445981,-490.0,0.00015723,2]
[366167667,1750097445994,-490.0,0.00015723,2]
[366167668,1750097446006,-490.0,0.00015723,2]
[366167669,1750097446018,-490.0,0.00015723,2]
[366167670,1750097446030,-490.0,0.00015723,2]
[366167671,1750097446042,-490.0,0.00015723,2]
[366167672,1750097446054,-490.0,0.00015723,2]
[366167673,1750097446067,-490.0,0.00015723,2]
[366167674,1750097446081,-490.0,0.00015723,2]
[366167675,1750097446096,-490.0,0.00015723,2]
[366167676,1750097446110,-490.0,0.00015723,2]
[366167677,1750097446123,-490.0,0.00015723,2]
[366167678,1750097446137,-635.33,0.00015723,2]
[366167679,1750097446150,-490.0,0.00015723,2]
[366167680,1750097446163,-490.0,0.00015723,2]
[366167681,1750097446192,-491.51807812,0.00015723,2]
[366167682,1750097446205,-490.0,0.00015723,2]
[366167683,1750097446217,-490.0,0.00015723,2]
[366167684,1750097446230,-490.0,0.00015723,2]
[366167685,1750097446242,-490.0,0.00015723,2]
[366167686,1750097446256,-494.27317248,0.00015723,2]
[366167687,1750097446268,-490.0,0.00015723,2]
[366167688,1750097446281,-491.42602028,0.00015723,2]
[366167689,1750097446293,-490.0,0.00015723,2]
[366167690,1750097446306,-490.0,0.00015723,2]
[366167691,1750097446319,-490.0,0.00015723,2]
[366167692,1750097446332,-490.0,0.00015723,2]
[366167693,1750097446344,-490.0,0.00015723,2]
[366167694,1750097446356,-490.0,0.00015723,2]
[366167695,1750097446369,-490.0,0.00015723,2]
[366167696,1750097446382,-490.0,0.00015723,2]
[366167697,1750097446394,-490.0,0.00015723,2]
[366167698,1750097446407,-490.0,0.00015723,2]
[366167699,1750097446419,-490.0,0.00015723,2]
[366167700,1750097446432,-490.0,0.00015723,2]
[366167701,1750097446444,-490.0,0.00015723,2]
[366167702,1750097446456,-490.0,0.00015723,2]
[366167703,1750097446468,-490.0,0.00015723,2]
[366167704,1750097446480,-490.0,0.00015723,2]
[366167705,1750097446493,-490.0,0.00015723,2]
[366167706,1750097446506,-490.0,0.00015723,2]
[366167707,1750097446519,-490.0,0.00015723,2]
[366167708,1750097446533,-490.0,0.00015723,2]
[366167709,1750097446545,-490.0,0.00015723,2]
[366167710,1750097446557,-490.0,0.00015723,2]
[366167711,1750097446570,-490.0,0.00015723,2]
[366167712,1750097446583,-490.0,0.00015723,2]
[366167713,1750097446595,-490.0,0.00015723,2]
[366167714,1750097446608,-842.4,0.00015723,2]
[366167715,1750097446620,-490.0,0.00015723,2]
[366167716,1750097446636,-490.0,0.00015723,2]